Cogmind - Beta 15 @@@ ROGUE MODE // 2025.10.21 @ 13:59:05 Player: whodovoodoo Result: Destroyed by G-34 Mercenary with Small Laser Performance ------------- Evolutions (1) 500 Regions Visited (4) 800 Robots Destroyed (15) 75 Value Destroyed (314) 314 Prototype IDs (0) 0 Alien Tech Used (0) 0 Bonus (0) 0 TOTAL SCORE: 1689 Bonus ------- None Cogmind --------- Core Integrity 0/400 Matter 300/300 Energy 100/100 System Corruption 1% Temperature Cool (6) Movement Core (200) Ox3 Location -9/Storage Parts ------- > --- POWER (1) -------- (None) > --- PROPULSION (2) --- (None) > --- UTILITY (2) ------ Medium Storage Unit > --- WEAPON (4) ------- (None) > --- INVENTORY (10) --- Light Ion Engine Light Ion Engine Compact Wheel Heat Sink Medium Matter Pod (100) Improved Terrain Scanner Seismic Detector Peak State ------------ > --- POWER ------------ Ion Engine > --- PROPULSION ------- Aluminum Leg Aluminum Leg > --- UTILITY ---------- Medium Storage Unit Seismic Detector > --- WEAPON ----------- Medium Laser Medium Laser Mining Laser Welding Torch > --- INVENTORY -------- Light Ion Engine Light Ion Engine Wheel Compact Wheel Medium Matter Pod Improved Terrain Scanner Seismic Detector Rocket Launcher [Rating: 10] Favorites ----------- Power Ion Engine Engine Ion Engine Propulsion Aluminum Leg Leg Aluminum Leg Wheel Wheel Utility Seismic Detector Device Seismic Detector Storage Medium Storage Unit Weapon Medium Laser Energy Gun Medium Laser Launcher Rocket Launcher Special Weapon Mining Laser Build | -11 -10 -10 -9 -9 ------- Run | Yrd Mat Min Mat Sto Slots Evolved 2 | . . . 2 . Power . | . . . . . Propulsion . | . . . . . Utility . | . . . . . Weapon 2 | . . . 2 . Parts Attached 16 | 8 1 2 2 3 Power 2 | 2 . . . . Engine 2 | 2 . . . . Core . | . . . . . Reactor . | . . . . . Propulsion 4 | 2 . . . 2 Treads . | . . . . . Leg 2 | 2 . . . . Wheel 2 | . . . . 2 Hover . | . . . . . Flight . | . . . . . Utility 4 | 2 1 . . 1 Device 2 | 1 . . . 1 Storage 2 | 1 1 . . . Processor . | . . . . . Hackware . | . . . . . Protection . | . . . . . Artifact . | . . . . . Weapon 6 | 2 . 2 2 . Energy Gun 3 | 2 . 1 . . Energy Cannon . | . . . . . Ballistic Gun . | . . . . . Ballistic Cannon . | . . . . . Launcher 1 | . . 1 . . Special Weapon 2 | . . . 2 . Impact Weapon . | . . . . . Slashing Weapon . | . . . . . Piercing Weapon . | . . . . . Special Melee Weapon . | . . . . . Unidentified Prototypes . | . . . . . Parts Lost 12 | . . . . 12 Power 2 | . . . . 2 Propulsion 4 | . . . . 4 Utility 1 | . . . . 1 Weapon 5 | . . . . 5 Highest Loss Streak 8 | . . . . 8 To Critical Strikes . | . . . . . Average Backups 7 | 2 8 10 8 7 Power 1 | 1 2 2 2 1 Propulsion 1 | . 1 2 2 1 Utility 2 | . 3 3 3 3 Weapon 1 | 1 2 2 1 . Tool/Special . | . . . . . Unused Backups 6 | . . . . 6 Power 2 | . . . . 2 Propulsion 1 | . . . . 1 Utility 3 | . . . . 3 Weapon . | . . . . . Tool/Special . | . . . . . Average Slot Usage (%) 90 | . 100 100 96 80 Engine 12 | . 14 14 11 11 Leg 21 | . 28 28 22 14 Wheel 2 | . . . . 5 Device 12 | . 14 14 11 11 Storage 12 | . 14 14 11 11 Energy Gun 21 | . 28 28 22 14 Special Weapon 6 | . . . 18 11 Peak Build Rating 10 | 8 8 9 10 10 Average Rating 7 | 5 8 8 9 7 On Entrance 6 | . 8 8 8 10 Naked Turns . | . . . . . Heaviest Build 22 | 14 19 20 22 22 Greatest Support 26 | 20 20 20 20 26 Greatest Overweight (x) 7 | 3 . . 1 7 Average Overweight (x) . | . . . 1 . Largest Inventory Capacity 10 | 8 10 10 10 10 Average Capacity 9 | 7 9 10 10 10 Most Carried 10 | 8 10 10 9 8 Average Carried 7 | 2 8 10 8 7 Final Capacity 10 | 8 10 10 10 10 Final Carried 10 | 8 10 10 8 7 Class Distribution -------------------- 73% | Mutant 26% | Gunner Dominant Class ---------------- Mutant | -10/Materials Mutant | -10/Mines Gunner | -9/Materials Gunner | -9/Storage Resources | -11 -10 -10 -9 -9 ----------- Run | Yrd Mat Min Mat Sto Matter Collected 434 | 350 . . . 84 Remotely . | . . . . . Salvage Created 488 | 178 . . . 310 Parts 28 | 11 . . . 17 Haulers Intercepted . | . . . . . Recyclers Shooed . | . . . . . Parts Field Recycled . | . . . . . Retrieved Matter . | . . . . . Parts Self-Destructed . | . . . . . Prevented . | . . . . . Kills | -11 -10 -10 -9 -9 ------- Run | Yrd Mat Min Mat Sto Combat Hostiles Destroyed 7 | . . . . 7 Guns 3 | . . . . 3 AOE 4 | . . . . 4 Classes Destroyed 6 | 3 . . . 3 Worker 2 | 2 . . . . Builder 1 | . . . . 1 Tunneler 3 | 3 . . . . Recycler 2 | 1 . . . 1 Grunt 5 | . . . . 5 Duelist 2 | . . . . 2 Best Kill Streak 6 | 6 . . . 6 Combat Bots Only 4 | . . . . 4 Max Kills in Single Turn 2 | 1 . . . 2 Gunslinging . | . . . . . Exploded 2 | . . . . 2 Melee . | . . . . . Uniques/NPCs Destroyed . | . . . . . Combat | -11 -10 -10 -9 -9 -------- Run | Yrd Mat Min Mat Sto Hostile Shots Fired 119 | . . . . 119 Missed 27 | . . . . 27 Hits 92 | . . . . 92 Projectile 92 | . . . . 92 Damage Taken 1183 | . . . . 1183 Core 406 | . . . . 406 Absorbed by Shields . | . . . . . Core Remaining (%) 100 | 100 . 100 . . Volleys Fired 20 | 10 . . . 10 Largest 3 | 2 . . . 3 Hottest 133 | 90 . . . 133 Shots Fired 41 | 20 . . . 21 Gun 37 | 20 . . . 17 Cannon . | . . . . . Launcher 4 | . . . . 4 Special . | . . . . . Kinetic . | . . . . . Thermal 37 | 20 . . . 17 Explosive 4 | . . . . 4 Electromagnetic . | . . . . . Robot Hit Streak 10 | 9 . . . 10 Robot Miss Streak 2 | 2 . . . 2 Penetration Max . | . . . . . Secondary Targets 1 | . . . . 1 Max Gunslinging Chain 1 | . . . . 1 Shots Hit Robots 27 | 13 . . . 14 Core Hits 24 | 7 . . . 17 Critical Kills . | . . . . . Critical Parts Destroyed . | . . . . . Critical Strikes 1 | 1 . . . . Burn 1 | 1 . . . . Melee Attacks . | . . . . . Impact . | . . . . . Slashing . | . . . . . Piercing . | . . . . . Sneak Attacks . | . . . . . Combat Hostiles . | . . . . . Follow-up Attacks . | . . . . . Damage Inflicted 694 | 167 . 3 . 524 Guns 320 | 167 . . . 153 Cannons . | . . . . . Explosions 322 | . . . . 322 Melee . | . . . . . Ramming 52 | . . 3 . 49 Kinetic . | . . . . . Thermal 320 | 167 . . . 153 Explosive 322 | . . . . 322 Electromagnetic . | . . . . . Impact . | . . . . . Slashing . | . . . . . Piercing . | . . . . . Highest Corruption 1 | . . . . 1 Average Corruption 1 | . . . . 1 Corruption Purged . | . . . . . Corruption Blocked . | . . . . . Effects 1 | . . . . 1 Data Loss (minor) 1 | . . . . 1 Overload Shots . | . . . . . Overflow Damage 44 | . . . . 44 Projectiles . | . . . . . Explosions 44 | . . . . 44 Melee . | . . . . . Knockbacks 1 | . . . . 1 Impact 1 | . . . . 1 Kinetic . | . . . . . Secondary . | . . . . . Self-Inflicted Damage 132 | . . . . 132 Shots 4 | . . . . 4 Rammed 6 | . . . . 6 Targets Rammed 17 | . . 1 . 16 Kicked 11 | . . 1 . 10 Crushed . | . . . . . Highest Temperature 246 | 90 . . . 246 Average Temperature 68 | 33 . . . 100 Received Heat Transfer 534 | . . . . 534 Effects 1 | . . . . 1 Energy Bleed 1 | . . . . 1 Siege Activations . | . . . . . Martial Activations . | . . . . . Shielding Activations . | . . . . . Robots Disrupted . | . . . . . Combat Hostiles . | . . . . . Robots Corrupted . | . . . . . Combat Hostiles . | . . . . . Parts Fried . | . . . . . Impact Corruptions . | . . . . . Robots Melted . | . . . . . Combat Hostiles . | . . . . . Parts Melted 3 | 2 . . . 1 Heat Transferred 976 | 532 . . . 444 Parts Sabotaged . | . . . . . Parts Stolen . | . . . . . Parts Stripped . | . . . . . Power Chain Reactions . | . . . . . Alert | -11 -10 -10 -9 -9 ------- Run | Yrd Mat Min Mat Sto Maximum Alert Level . | . . . . . Low Security (%) 100 | 100 100 100 100 100 Level 1 . | . . . . . Level 2 . | . . . . . Level 3 . | . . . . . Level 4 . | . . . . . Level 5 . | . . . . . High Security . | . . . . . Max Security . | . . . . . Peak Influence 185 | 10 . . . 185 Initial . | . . . . . Average 22 | 2 . . . 56 Influence Increases 370 | 30 . . . 340 Destroy 0b10 Robot/C 140 | . . . . 140 Destroy 0b10 Robot/NC 40 | 30 . . . 10 Destroy Leader 30 | . . . . 30 Successful Hack 14 | . . . . 14 Disable Machine 15 | . . . . 15 Destroy Structure 26 | . . . . 26 Lose Combat Pursuer 105 | . . . . 105 Influence Decreases 235 | 30 . . . 205 Time Decay 115 | 30 . . . 85 Lost Part 120 | . . . . 120 Squads Dispatched 2 | . . . . 2 Investigation 1 | . . . . 1 Extermination . | . . . . . Reinforcement 1 | . . . . 1 Assault . | . . . . . Garrison . | . . . . . Intercept . | . . . . . Searches Triggered . | . . . . . Construction Impeded . | . . . . . Haulers Reinforced . | . . . . . Active Scanning Responses . | . . . . . Cargo Convoy Interrupts . | . . . . . Stealth | -11 -10 -10 -9 -9 --------- Run | Yrd Mat Min Mat Sto Distress Signals 1 | . . . . 1 Communications Jammed . | . . . . . Distress Signals . | . . . . . Times Spotted 24 | . . . . 24 Peak Tracking Total 10 | . . . . 10 Tactical Retreats 2 | . . . . 2 Traps | -11 -10 -10 -9 -9 ------- Run | Yrd Mat Min Mat Sto Traps Triggered 2 | . . . . 2 Indirectly . | . . . . . Trap Hack Attempts . | . . . . . Triggered . | . . . . . Disarmed . | . . . . . Reprogrammed . | . . . . . Reused . | . . . . . Traps Extracted . | . . . . . Installed . | . . . . . Triggered . | . . . . . Machines | -11 -10 -10 -9 -9 ---------- Run | Yrd Mat Min Mat Sto Machines Disabled 1 | . . . . 1 Max in Single Turn 1 | . . . . 1 Machines Repaired . | . . . . . Machines Dismantled . | . . . . . Machines Sabotaged . | . . . . . Overloaded Fab Kills . | . . . . . Hacking | -11 -10 -10 -9 -9 --------- Run | Yrd Mat Min Mat Sto Machines Accessed 5 | . 2 . . 3 Terminals 5 | . 2 . . 3 Fabricators . | . . . . . Repair Stations . | . . . . . Recycling Units . | . . . . . Scanalyzers . | . . . . . Garrison Access . | . . . . . Total Hacks 10 | . 4 . . 6 Successful 4 | . 1 . . 3 Failed 6 | . 3 . . 3 Catastrophic 1 | . . . . 1 Database Lockouts . | . . . . . Manual 5 | . . . . 5 Terminals 10 | . 4 . . 6 Fabricators . | . . . . . Repair Stations . | . . . . . Recycling Units . | . . . . . Scanalyzers . | . . . . . Garrison Access . | . . . . . Terminal Hacks 4 | . 1 . . 3 Record 1 | . 1 . . . Level Access Points 1 | . . . . 1 Recall Reinforcements 1 | . . . . 1 Zone Layout 1 | . . . . 1 Fabricator Hacks . | . . . . . Repair Station Hacks . | . . . . . Recycling Unit Hacks . | . . . . . Scanalyzer . | . . . . . Garrison Access Hacks . | . . . . . Unauthorized Hacks . | . . . . . Terminals . | . . . . . Fabricators . | . . . . . Repair Stations . | . . . . . Recycling Units . | . . . . . Scanalyzers . | . . . . . Garrison Access . | . . . . . Data Cores Recovered . | . . . . . Used . | . . . . . Hacking Detections 5 | . 2 . . 3 Full Trace Events . | . . . . . Feedback Events . | . . . . . Feedback Blocked . | . . . . . Robot Schematics Acquired . | . . . . . Robots Built . | . . . . . Authchips . | . . . . . Time . | . . . . . Total Robot Build Rating . | . . . . . Part Schematics Acquired . | . . . . . Parts Built . | . . . . . Authchips . | . . . . . Time . | . . . . . Total Part Build Rating . | . . . . . Parts Repaired . | . . . . . Time . | . . . . . Parts Recycled . | . . . . . Recycled Matter . | . . . . . Retrieved Matter . | . . . . . Retrieved Components . | . . . . . Parts Scanalyzed . | . . . . . Part Schematics Acquired . | . . . . . Parts Damaged . | . . . . . Bothacking | -11 -10 -10 -9 -9 ------------ Run | Yrd Mat Min Mat Sto Used RIF Installer . | . . . . . Robots Hacked . | . . . . . Non-combat . | . . . . . Combat . | . . . . . Robot Hacks Applied . | . . . . . Relay Couplers Released . | . . . . . Fabnet Peak Effective % . | . . . . . Robots Rewired . | . . . . . Allies Hacked . | . . . . . Hacks Repelled . | . . . . . Allies | -11 -10 -10 -9 -9 -------- Run | Yrd Mat Min Mat Sto Total Allies . | . . . . . Largest Group . | . . . . . Highest-Rated Group . | . . . . . Highest-Rated Ally . | . . . . . Total Orders . | . . . . . Ally Attacks . | . . . . . Total Damage . | . . . . . Kills . | . . . . . Allies Corrupted . | . . . . . Allies Melted . | . . . . . Intel | -11 -10 -10 -9 -9 ------- Run | Yrd Mat Min Mat Sto Active Infowar (turns) 719 | 61 95 228 27 308 Seismic 719 | 61 95 228 27 308 Robot Analysis Total . | . . . . . Derelict Logs Recovered . | . . . . . Drone Launches . | . . . . . Drone Recoveries . | . . . . . Exploration | -11 -10 -10 -9 -9 ------------- Run | Yrd Mat Min Mat Sto Turns Passed 818 | 156 95 228 27 312 Spaces Moved 539 | 89 77 187 14 172 Core 20 | 17 . . . 3 Treads . | . . . . . Legs 433 | 72 77 187 14 83 Wheels 86 | . . . . 86 Hover . | . . . . . Flight . | . . . . . Fastest Speed 50 | 50 120 120 190 90 Average Speed 128 | 121 120 120 190 141 Slowest Speed 400 | 200 120 120 190 400 Overloaded Moves . | . . . . . Propulsion Burnouts . | . . . . . Robots Hopped . | . . . . . Potential Cave-ins . | . . . . . Cave-ins Triggered . | . . . . . Exploration Rate (%) 18 | 4 20 36 4 28 Regions Visited 4 Branch Regions 2 Pre-discovered Areas . | . . . . . Known Exits Taken . | . . . . . Unknown Exits Taken 4 | 1 1 1 1 . Scrap Searched . | . . . . . Spaces Dug . | . . . . . Terrain Destroyed 50 | . . . . 50 Melee . | . . . . . Projectile . | . . . . . AOE 50 | . . . . 50 Terrain Rammed . | . . . . . Walls Destroyed . | . . . . . Machines Disabled . | . . . . . Actions | -11 -10 -10 -9 -9 --------- Run | Yrd Mat Min Mat Sto Total 608 | 113 80 189 15 211 Wait 1 | . . . . 1 Move 535 | 88 76 186 13 172 Hop . | . . . . . Pick Up 11 | 7 2 . . 2 Fast Attach 8 | 7 . . . 1 Attach 5 | . . . 2 3 Detach . | . . . . . Swap 5 | 1 1 2 . 1 Drop 1 | . 1 . . . Fire 20 | 10 . . . 10 Melee . | . . . . . Ram 6 | . . . . 6 Kick 11 | . . 1 . 10 Crush . | . . . . . Escape Stasis 5 | . . . . 5 Rewire . | . . . . . Trap . | . . . . . Miscellaneous . | . . . . . Route ------- -11/Scrapyard -10/Materials -10/Mines -9/Materials -9/Storage (discovered 1 exit: Mat) History --------- Turn | Location | Event 25 | -11/Scrapyard | Discovered new exit (range 15) 157 | -11/Scrapyard | Entered Materials 231 | -10/Materials | Discovered new exit (range 16) 252 | -10/Materials | Entered Mines 309 | -10/Mines | Build established: Mutant 373 | -10/Mines | Received a Rocket Launcher from a helpful Derelict 469 | -10/Mines | Discovered new exit (range 10) 480 | -10/Mines | Entered Materials 480 | -9/Materials | Evolved 2 slots: Weapon x2 482 | -9/Materials | Discovered new exit (range 15) 507 | -9/Materials | Entered Storage 756 | -9/Storage | Lost 8 parts (1p2n5w) 800 | -9/Storage | Identified exit to Materials 813 | -9/Storage | Core integrity fell below 50% 817 | -9/Storage | Core integrity fell below 20% 819 | -9/Storage | Destroyed by G-34 Mercenary with Small Laser Last Messages --------------- Connecting with Terminal... Triggered Alarm Trap. An alarm sounds. ALERT: Alarm triggered, dispatching investigation squad. Connecting with Terminal... >>Access(Main) Found 1 level access point to Materials: (60,61) Map updated. Slammed into Y-45 Defender. Slammed into G-34 Mercenary. Lgt. Ion Engine destroyed. Com. Wheel destroyed. Slammed into G-34 Mercenary. Destabilizing: System corrupted (+1). Wheel destroyed. Seismic Detector destroyed. Slammed into G-34 Mercenary. System corrupted: Component data lost. Map ----- +----------------------------------------------------+ | ???????# "#?????? | | ???????# """"" """"" T#?????? | | ???????# """"" """"" "#?????? | | ???????# """"" """"" ##?????? | | ???????# #??????? | | ???????#######+############## | | ????????# | | ????????# | | ????????# | | ????????######+# ###### % | | ??????????# ##??# | | ??????????# """" #??# % | | ??????????# "? "" ##??# % | | ??????????# "? "" #### | | ?#######??# """=* * ## | | ## #??# ""]["%[ =#| | | #" """ #??# """"! ######[ | | #T """ #??# *+%%==!= | | #" """ #??######### #####%* | | ## #? #??## # # | | ?# Y #?""""" #???# ## | | ?# g # """"" #???## # | | ?###Y### """"" #?????## # | | ???# g + ######??### | | ???#% g####+##+##"""#????# | | ???#@ g### # ##"R"#????# | | ???#g Y T # ##" "###??# | | ???# ##### # #?????????# | | ???# #???## #?????????# | | ???# #????# #?????????# | | ???#+#????# #?????????# | | ??? ?????# / ????????# | | ??? "?????# # ???????# | | ???"G?????# ########### | | ???" ?????# | | ??????????/ | | ??????????# | | ??????????### ############### | | ????????????# #?????????????? | | ????????????# #?????????????? | | ????????????# #?????????????? | | ????????????#+#?????????????? | | ????????????????????????????? | | ????????????????????????????? | | ????????????????????????????? | | ????????????????????????????? | | ????????????????????????????? | | ????????????????????????????? | | ????????????????????????????? | | ????????????????????????????? | +----------------------------------------------------+ Best States ------------- Heat Dissipation 28 Energy Generation 10 Energy Capacity 250 Matter Stores 300 Matter Capacity 300 Sight Range 16 Terrain Scan Density 10 Evasion (%) 55 Item Schematics ----------------- None Robot Schematics ------------------ None Fabricated ------------ Nothing Repaired ---------- Nothing Alien Tech Used ----------------- None Achievements -------------- None Challenges ------------ None Game ------ Seed whodovoodoo Manual? 1 Play Time 00:14:51 Cumulative 38.4 hours Start 2025.10.20 @ 18:05:26 End 2025.10.21 @ 13:59:05 Sessions 3 Manual Loads 0 Difficulty Rogue Special Mode None Game No. 34 Rogue 5 Adventurer 0 Explorer 29 Win Type - Total 0 Types 0/0/0/0/0/0/0/0/0/0 Lore% 4 Gallery% 25 Achievement% 21 Wizard Run 0 Options --------- Layout 1 ASCII 1 Keyboard 1 Movement Vi Keybinds 0 Fullscreen 1 Font 24/Proggy Map View 50x35 Zoom Use 0% Tactical HUD 0 Map Filters NONE Filters NONE Steam 1 RUN: 081a9f05-3785-4d78-b5c5-ef06c9b622f9